[Event "*** Titled Tuesday Blitz"]
[Site "Chess.com"]
[Date "2019.08.06"]
[Round "5"]
[White "SanchezKelvin"]
[Black "I-Mesquita"]
[Result "0-1"]
[WhiteElo "2448"]
[BlackElo "2697"]
[TimeControl "180+2"]
[EndTime "14:03:19 PDT"]
[Termination "I-Mesquita won on time"]

1. d4 {[%clk 0:03:01.9]} 1... Nf6 {[%clk 0:03:00]} 2. c4 {[%clk 0:03:00.2]} 2...
e6 {[%clk 0:03:00.5]} 3. Nf3 {[%clk 0:03:00.7]} 3... b6 {[%clk 0:03:01.1]} 4. g3
{[%clk 0:03:01.6]} 4... Ba6 {[%clk 0:03:01.6]} 5. Qc2 {[%clk 0:03:02.3]} 5... d5
{[%clk 0:02:29.8]} 6. cxd5 {[%clk 0:03:00.2]} 6... exd5 {[%clk 0:02:30]} 7. Bg2
{[%clk 0:03:00.7]} 7... Be7 {[%clk 0:02:28.4]} 8. O-O {[%clk 0:03:00.8]} 8...
O-O {[%clk 0:02:29.1]} 9. Nc3 {[%clk 0:02:58.2]} 9... c5 {[%clk 0:02:19.9]} 10.
Rd1 {[%clk 0:02:53.8]} 10... Nc6 {[%clk 0:02:13.2]} 11. e4 {[%clk 0:02:44.6]}
11... Nxd4 {[%clk 0:02:06.2]} 12. Nxd4 {[%clk 0:02:40.6]} 12... cxd4 {[%clk
0:02:07.2]} 13. Nxd5 {[%clk 0:02:42.2]} 13... Nxd5 {[%clk 0:01:57.6]} 14. exd5
{[%clk 0:02:43.3]} 14... Bf6 {[%clk 0:01:39.6]} 15. Bf4 {[%clk 0:02:25.5]} 15...
Re8 {[%clk 0:01:25.5]} 16. Rd2 {[%clk 0:01:58.8]} 16... Qd7 {[%clk 0:01:18.6]}
17. Qc7 {[%clk 0:01:35]} 17... Qf5 {[%clk 0:00:57.7]} 18. d6 {[%clk 0:01:33.8]}
18... Rec8 {[%clk 0:00:36]} 19. Bxa8 {[%clk 0:01:27]} 19... Rxc7 {[%clk
0:00:36.9]} 20. dxc7 {[%clk 0:01:28]} 20... g5 {[%clk 0:00:34.8]} 21. Bd6 {[%clk
0:01:16.6]} 21... Qd7 {[%clk 0:00:35.5]} 22. Rc1 {[%clk 0:01:05.3]} 22... Qxd6
{[%clk 0:00:30.1]} 23. c8=Q+ {[%clk 0:01:05.7]} 23... Bxc8 {[%clk 0:00:31.6]}
24. Rxc8+ {[%clk 0:01:07.1]} 24... Kg7 {[%clk 0:00:33.5]} 25. Be4 {[%clk
0:01:04.1]} 25... Qe6 {[%clk 0:00:30.8]} 0-1

[Event "*** Titled Tuesday Blitz"]
[Site "Chess.com"]
[Date "2019.08.06"]
[Round "5"]
[White "FearNoEvil12"]
[Black "BabyFacedAssasin"]
[Result "0-1"]
[WhiteElo "2001"]
[BlackElo "2177"]
[TimeControl "180+2"]
[EndTime "14:03:25 PDT"]
[Termination "BabyFacedAssasin won by resignation"]

1. e4 {[%clk 0:03:01.9]} 1... e6 {[%clk 0:03:00.7]} 2. d4 {[%clk 0:03:01.5]}
2... d5 {[%clk 0:03:00.5]} 3. Nc3 {[%clk 0:03:03]} 3... Nf6 {[%clk 0:02:59.4]}
4. Qd3 {[%clk 0:03:04]} 4... Bb4 {[%clk 0:02:41.6]} 5. e5 {[%clk 0:03:01.9]}
5... Ne4 {[%clk 0:02:40.3]} 6. a3 {[%clk 0:03:03.1]} 6... Ba5 {[%clk 0:02:11.2]}
7. b4 {[%clk 0:03:03]} 7... Bb6 {[%clk 0:02:12.1]} 8. Nxe4 {[%clk 0:02:58.7]}
8... dxe4 {[%clk 0:02:12.9]} 9. Qxe4 {[%clk 0:02:51.1]} 9... Qxd4 {[%clk
0:02:13]} 10. Qxd4 {[%clk 0:02:51]} 10... Bxd4 {[%clk 0:02:13.8]} 11. Rb1 {[%clk
0:02:52.2]} 11... Bxe5 {[%clk 0:02:12.6]} 12. Nf3 {[%clk 0:02:53.6]} 12... Bc3+
{[%clk 0:02:07.2]} 13. Bd2 {[%clk 0:02:53.6]} 13... Bxd2+ {[%clk 0:02:08.7]} 14.
Nxd2 {[%clk 0:02:54.9]} 14... O-O {[%clk 0:02:08.2]} 15. Bd3 {[%clk 0:02:56]}
15... Nd7 {[%clk 0:02:05.1]} 16. O-O {[%clk 0:02:57.2]} 16... Ne5 {[%clk
0:01:58.7]} 17. Be2 {[%clk 0:02:56.8]} 17... Rd8 {[%clk 0:01:54.7]} 18. Ne4
{[%clk 0:02:56.9]} 18... b6 {[%clk 0:01:52.4]} 19. f4 {[%clk 0:02:56.9]} 19...
Nd7 {[%clk 0:01:47.2]} 20. Bd3 {[%clk 0:02:55.3]} 20... Bb7 {[%clk 0:01:45]} 21.
Rbe1 {[%clk 0:02:54.1]} 21... Nf6 {[%clk 0:01:43.1]} 22. Nxf6+ {[%clk
0:02:51.1]} 22... gxf6 {[%clk 0:01:45]} 23. Re3 {[%clk 0:02:47.9]} 23... Rac8
{[%clk 0:01:44.8]} 24. Rg3+ {[%clk 0:02:47]} 24... Kf8 {[%clk 0:01:43.7]} 25.
Bxh7 {[%clk 0:02:44.3]} 25... c5 {[%clk 0:01:41.9]} 26. c3 {[%clk 0:02:28.9]}
26... cxb4 {[%clk 0:01:40.7]} 27. cxb4 {[%clk 0:02:29.1]} 27... Ke7 {[%clk
0:01:39.5]} 28. Re1 {[%clk 0:02:25.1]} 28... Rd2 {[%clk 0:01:37.7]} 29. Bf5
{[%clk 0:02:21.5]} 29... Rcd8 {[%clk 0:01:19]} 30. Bh3 {[%clk 0:02:20.6]} 30...
Ra2 {[%clk 0:01:16.9]} 31. Rg7 {[%clk 0:02:18]} 31... Kf8 {[%clk 0:01:09.6]} 32.
Rg3 {[%clk 0:02:13.5]} 32... Rdd2 {[%clk 0:01:09.2]} 33. Rc1 {[%clk 0:02:07.2]}
33... Bd5 {[%clk 0:01:06.2]} 34. Kf1 {[%clk 0:01:58.6]} 34... Ke7 {[%clk
0:01:06.3]} 35. Bg4 {[%clk 0:01:48.1]} 35... Rf2+ {[%clk 0:01:00.1]} 36. Ke1
{[%clk 0:01:45.3]} 36... Bxg2 {[%clk 0:00:55.4]} 37. Rxg2 {[%clk 0:01:18.3]}
37... Rxg2 {[%clk 0:00:55.1]} 38. Bh3 {[%clk 0:01:20.2]} 38... Rge2+ {[%clk
0:00:50.6]} 39. Kd1 {[%clk 0:01:18.9]} 39... Rxh2 {[%clk 0:00:51.7]} 40. Bf1
{[%clk 0:01:18.6]} 40... e5 {[%clk 0:00:49.7]} 41. fxe5 {[%clk 0:01:18.2]} 41...
fxe5 {[%clk 0:00:50.8]} 42. Ke1 {[%clk 0:01:19.7]} 42... e4 {[%clk 0:00:51.2]}
43. Rd1 {[%clk 0:01:16.7]} 43... e3 {[%clk 0:00:50.3]} 44. Rd3 {[%clk
0:01:16.8]} 44... Ra1+ {[%clk 0:00:44.8]} 45. Rd1 {[%clk 0:01:16.9]} 45... Rxd1+
{[%clk 0:00:45.1]} 46. Kxd1 {[%clk 0:01:18]} 46... f5 {[%clk 0:00:46.3]} 47. Be2
{[%clk 0:01:17.4]} 47... f4 {[%clk 0:00:47.4]} 48. a4 {[%clk 0:01:15.9]} 48...
Kd6 {[%clk 0:00:47.9]} 49. a5 {[%clk 0:01:16.3]} 49... bxa5 {[%clk 0:00:48.6]}
50. bxa5 {[%clk 0:01:17.3]} 50... Rxe2 {[%clk 0:00:49.4]} 51. Kxe2 {[%clk
0:01:17.1]} 51... Kc5 {[%clk 0:00:50.8]} 0-1

[Event "*** Titled Tuesday Blitz"]
[Site "Chess.com"]
[Date "2019.08.06"]
[Round "5"]
[White "m3alam"]
[Black "Polish_fighter3000"]
[Result "0-1"]
[WhiteElo "2324"]
[BlackElo "2974"]
[TimeControl "180+2"]
[EndTime "14:03:27 PDT"]
[Termination "Polish_fighter3000 won by resignation"]

1. Nf3 {[%clk 0:03:01.8]} 1... b6 {[%clk 0:02:56.6]} 2. g3 {[%clk 0:03:01.4]}
2... Bb7 {[%clk 0:02:58.5]} 3. Bg2 {[%clk 0:03:03]} 3... c5 {[%clk 0:02:58.5]}
4. O-O {[%clk 0:03:04.2]} 4... g6 {[%clk 0:03:00.1]} 5. Re1 {[%clk 0:02:52.7]}
5... Nf6 {[%clk 0:02:59.1]} 6. d4 {[%clk 0:02:49.1]} 6... cxd4 {[%clk
0:02:59.3]} 7. Nxd4 {[%clk 0:02:46.2]} 7... Bxg2 {[%clk 0:03:00.1]} 8. Kxg2
{[%clk 0:02:43.2]} 8... d5 {[%clk 0:03:01.7]} 9. Bf4 {[%clk 0:02:36.6]} 9... Bg7
{[%clk 0:02:59.8]} 10. Nd2 {[%clk 0:02:31.5]} 10... O-O {[%clk 0:02:58.7]} 11.
c3 {[%clk 0:02:28.3]} 11... Nfd7 {[%clk 0:02:57]} 12. N2f3 {[%clk 0:02:05.8]}
12... e5 {[%clk 0:02:47.5]} 13. Bg5 {[%clk 0:02:06.2]} 13... Qc8 {[%clk
0:02:45.4]} 14. Nc2 {[%clk 0:02:01.5]} 14... Qb7 {[%clk 0:02:35.7]} 15. Nb4
{[%clk 0:01:56.3]} 15... d4 {[%clk 0:02:05.3]} 16. cxd4 {[%clk 0:01:36.5]} 16...
a5 {[%clk 0:02:02.1]} 17. Nc2 {[%clk 0:01:30.6]} 17... e4 {[%clk 0:02:03.6]} 18.
Nd2 {[%clk 0:01:27.2]} 18... e3+ {[%clk 0:01:59.4]} 19. Nf3 {[%clk 0:01:27.8]}
19... exf2 {[%clk 0:02:01]} 20. Kxf2 {[%clk 0:01:26.7]} 20... h6 {[%clk
0:02:02.6]} 21. Bf4 {[%clk 0:01:24.6]} 21... Nf6 {[%clk 0:02:03.7]} 22. h3
{[%clk 0:01:13.9]} 22... Nbd7 {[%clk 0:01:59]} 23. Kg2 {[%clk 0:01:14.4]} 23...
Rfe8 {[%clk 0:01:57.9]} 24. Qd3 {[%clk 0:01:11.9]} 24... Ne4 {[%clk 0:01:55.5]}
25. Kh2 {[%clk 0:01:10.8]} 25... Rad8 {[%clk 0:01:53.3]} 26. Rac1 {[%clk
0:00:58.7]} 26... g5 {[%clk 0:01:53]} 27. Be3 {[%clk 0:00:55.5]} 27... Qb8
{[%clk 0:01:26.5]} 28. Rg1 {[%clk 0:00:50.9]} 28... Ndf6 {[%clk 0:01:25.2]} 29.
Qb5 {[%clk 0:00:41.1]} 29... Nh5 {[%clk 0:01:12]} 30. Ne5 {[%clk 0:00:31.3]}
30... Nhxg3 {[%clk 0:01:12.8]} 31. Rxg3 {[%clk 0:00:15.9]} 31... Nxg3 {[%clk
0:01:05.3]} 32. Kxg3 {[%clk 0:00:15.8]} 32... Bxe5+ {[%clk 0:01:06.7]} 33. dxe5
{[%clk 0:00:16.5]} 33... Rxe5 {[%clk 0:01:08.6]} 0-1

[Event "*** Titled Tuesday Blitz"]
[Site "Chess.com"]
[Date "2019.08.06"]
[Round "5"]
[White "VladimirBelous"]
[Black "Cruel_Yaro"]
[Result "1-0"]
[WhiteElo "2811"]
[BlackElo "2754"]
[TimeControl "180+2"]
[EndTime "14:03:28 PDT"]
[Termination "VladimirBelous won on time"]

1. c4 {[%clk 0:03:01.9]} 1... Nf6 {[%clk 0:02:59.3]} 2. Nf3 {[%clk 0:03:02]}
2... g6 {[%clk 0:02:59.6]} 3. Nc3 {[%clk 0:03:02.8]} 3... d5 {[%clk 0:03:00.7]}
4. cxd5 {[%clk 0:03:02.1]} 4... Nxd5 {[%clk 0:03:02.6]} 5. g3 {[%clk 0:03:03.1]}
5... Bg7 {[%clk 0:03:02.2]} 6. Bg2 {[%clk 0:03:04.6]} 6... c5 {[%clk 0:03:01.7]}
7. h4 {[%clk 0:03:05.7]} 7... h6 {[%clk 0:02:52.2]} 8. O-O {[%clk 0:02:48.2]}
8... Nc7 {[%clk 0:02:46.7]} 9. d3 {[%clk 0:02:42.5]} 9... O-O {[%clk 0:02:46]}
10. Be3 {[%clk 0:02:41.5]} 10... Ne6 {[%clk 0:02:43.9]} 11. Ne4 {[%clk
0:02:29.8]} 11... b6 {[%clk 0:02:40]} 12. Qc1 {[%clk 0:02:21.6]} 12... Kh7
{[%clk 0:02:36.2]} 13. Nfg5+ {[%clk 0:02:15.4]} 13... hxg5 {[%clk 0:02:34.4]}
14. Nxg5+ {[%clk 0:02:16]} 14... Nxg5 {[%clk 0:02:32.2]} 15. Bxg5 {[%clk
0:02:00.8]} 15... Bd7 {[%clk 0:01:57.1]} 16. Bxa8 {[%clk 0:01:59.8]} 16... Nc6
{[%clk 0:01:58.1]} 17. Bxc6 {[%clk 0:01:59]} 17... Bxc6 {[%clk 0:01:59.2]} 18.
Be3 {[%clk 0:01:35.1]} 18... f5 {[%clk 0:01:49]} 19. f3 {[%clk 0:01:20.8]} 19...
e5 {[%clk 0:01:49.6]} 20. Rf2 {[%clk 0:01:15.5]} 20... Kg8 {[%clk 0:01:37.8]}
21. Bg5 {[%clk 0:01:13.2]} 21... Qd7 {[%clk 0:01:36.4]} 22. Rb1 {[%clk
0:01:04.1]} 22... a5 {[%clk 0:00:52]} 23. Bh6 {[%clk 0:01:03]} 23... f4 {[%clk
0:00:25.8]} 24. Bg5 {[%clk 0:00:57.6]} 24... e4 {[%clk 0:00:18.6]} 25. dxe4
{[%clk 0:00:50.3]} 25... Bd4 {[%clk 0:00:16.3]} 26. Bxf4 {[%clk 0:00:51.6]}
26... Qh3 {[%clk 0:00:13.3]} 27. Qf1 {[%clk 0:00:35.8]} 27... Bxf2+ {[%clk
0:00:04.9]} 28. Kxf2 {[%clk 0:00:36.9]} 28... Qe6 {[%clk 0:00:04.6]} 29. Qd1
{[%clk 0:00:34.1]} 29... Qxa2 {[%clk 0:00:04.3]} 30. Qd6 {[%clk 0:00:34.9]}
30... Qxb1 {[%clk 0:00:02.7]} 31. Qxg6+ {[%clk 0:00:35.7]} 1-0

[Event "*** Titled Tuesday Blitz"]
[Site "Chess.com"]
[Date "2019.08.06"]
[Round "5"]
[White "santosalberto1987"]
[Black "dmosesov"]
[Result "0-1"]
[WhiteElo "2473"]
[BlackElo "2554"]
[TimeControl "180+2"]
[EndTime "14:03:32 PDT"]
[Termination "dmosesov won by resignation"]

1. e4 {[%clk 0:03:01.9]} 1... c5 {[%clk 0:02:59.8]} 2. Nf3 {[%clk 0:03:02.2]}
2... d6 {[%clk 0:03:00.8]} 3. Bb5+ {[%clk 0:03:01.5]} 3... Nd7 {[%clk
0:03:01.1]} 4. O-O {[%clk 0:02:58.4]} 4... a6 {[%clk 0:03:02.4]} 5. Bd3 {[%clk
0:02:59]} 5... e6 {[%clk 0:03:03.5]} 6. c3 {[%clk 0:02:59.7]} 6... g5 {[%clk
0:03:04.5]} 7. Bc2 {[%clk 0:02:51.4]} 7... g4 {[%clk 0:03:04.8]} 8. Ne1 {[%clk
0:02:52.2]} 8... h5 {[%clk 0:03:06.4]} 9. d4 {[%clk 0:02:52.3]} 9... Bg7 {[%clk
0:02:58]} 10. f3 {[%clk 0:02:50.7]} 10... Ngf6 {[%clk 0:02:54.3]} 11. fxg4
{[%clk 0:02:47.8]} 11... hxg4 {[%clk 0:02:45.9]} 12. Be3 {[%clk 0:02:41.9]}
12... Qc7 {[%clk 0:02:43.4]} 13. Nd2 {[%clk 0:02:39]} 13... b5 {[%clk
0:02:39.3]} 14. a4 {[%clk 0:02:37.4]} 14... Bb7 {[%clk 0:02:39.3]} 15. axb5
{[%clk 0:02:38.1]} 15... axb5 {[%clk 0:02:41.2]} 16. Rxa8+ {[%clk 0:02:38.2]}
16... Bxa8 {[%clk 0:02:43.1]} 17. Qe2 {[%clk 0:02:36.5]} 17... cxd4 {[%clk
0:02:42.9]} 18. Bxd4 {[%clk 0:02:36.6]} 18... Bc6 {[%clk 0:02:35.6]} 19. Nd3
{[%clk 0:02:15.6]} 19... Ne5 {[%clk 0:02:08.4]} 20. Nxe5 {[%clk 0:02:04.1]}
20... dxe5 {[%clk 0:02:10.3]} 21. Bc5 {[%clk 0:01:58.3]} 21... Bd7 {[%clk
0:01:57.5]} 22. Bb4 {[%clk 0:01:54.2]} 22... Qb6+ {[%clk 0:01:52.2]} 23. Qf2
{[%clk 0:01:54.6]} 23... Qxf2+ {[%clk 0:01:49.7]} 24. Rxf2 {[%clk 0:01:55.7]}
24... Nh5 {[%clk 0:01:50.8]} 25. Nb3 {[%clk 0:01:51.7]} 25... Bh6 {[%clk
0:01:42.8]} 26. Re2 {[%clk 0:01:41.1]} 26... g3 {[%clk 0:01:36.2]} 27. h3 {[%clk
0:01:29.9]} 27... f6 {[%clk 0:01:12.9]} 28. Nc5 {[%clk 0:01:27]} 28... Bc1
{[%clk 0:01:07.7]} 29. Nxd7 {[%clk 0:01:24.7]} 29... Kxd7 {[%clk 0:01:07.4]} 30.
Bd3 {[%clk 0:01:26.1]} 30... Kc6 {[%clk 0:01:04.6]} 31. Rc2 {[%clk 0:01:20.9]}
31... Be3+ {[%clk 0:01:05.3]} 32. Kf1 {[%clk 0:01:20.6]} 32... Nf4 {[%clk
0:01:06.8]} 33. Be2 {[%clk 0:01:20.6]} 33... Ra8 {[%clk 0:01:06.9]} 34. Ba3
{[%clk 0:01:18.8]} 34... Bc5 {[%clk 0:00:59]} 35. Rc1 {[%clk 0:01:04.9]} 35...
Bxa3 {[%clk 0:00:56.2]} 36. Ra1 {[%clk 0:01:06.1]} 36... Rd8 {[%clk 0:00:57.7]}
37. Rxa3 {[%clk 0:00:55.3]} 37... Rd2 {[%clk 0:00:58.9]} 38. Ra6+ {[%clk
0:00:50.6]} 38... Kb7 {[%clk 0:00:59.4]} 39. Bxb5 {[%clk 0:00:51.4]} 39... Rf2+
{[%clk 0:01:00.6]} 40. Kg1 {[%clk 0:00:38.2]} 40... Rxg2+ {[%clk 0:01:01.4]} 41.
Kh1 {[%clk 0:00:38.7]} 41... Rh2+ {[%clk 0:01:02.4]} 42. Kg1 {[%clk 0:00:37.8]}
42... Nxh3+ {[%clk 0:01:03.7]} 43. Kf1 {[%clk 0:00:37.9]} 43... g2+ {[%clk
0:01:05.1]} 0-1

[Event "*** Titled Tuesday Blitz"]
[Site "Chess.com"]
[Date "2019.08.06"]
[Round "5"]
[White "Durarbayli"]
[Black "IMDT02"]
[Result "1-0"]
[WhiteElo "2801"]
[BlackElo "2524"]
[TimeControl "180+2"]
[EndTime "14:03:40 PDT"]
[Termination "Durarbayli won by checkmate"]

1. e4 {[%clk 0:03:01.9]} 1... c5 {[%clk 0:03:00.9]} 2. Nf3 {[%clk 0:03:01.6]}
2... Nc6 {[%clk 0:03:02.2]} 3. d4 {[%clk 0:03:02.5]} 3... cxd4 {[%clk
0:03:04.1]} 4. Nxd4 {[%clk 0:03:04]} 4... e5 {[%clk 0:03:05.8]} 5. Nb5 {[%clk
0:03:02.8]} 5... d6 {[%clk 0:03:07.2]} 6. Be3 {[%clk 0:03:02.5]} 6... a6 {[%clk
0:03:04.4]} 7. N5c3 {[%clk 0:03:02.3]} 7... Nf6 {[%clk 0:03:03.8]} 8. Bc4 {[%clk
0:03:01.7]} 8... b5 {[%clk 0:02:58.7]} 9. Bb3 {[%clk 0:03:02.3]} 9... Rb8 {[%clk
0:02:37.1]} 10. a4 {[%clk 0:02:41]} 10... b4 {[%clk 0:02:32]} 11. Nd5 {[%clk
0:02:41.5]} 11... Bd7 {[%clk 0:01:38]} 12. a5 {[%clk 0:02:21.7]} 12... Nxd5
{[%clk 0:01:28.1]} 13. Qxd5 {[%clk 0:02:15.4]} 13... Qf6 {[%clk 0:01:26.8]} 14.
Bc4 {[%clk 0:02:01.1]} 14... Nd8 {[%clk 0:01:11]} 15. Bxa6 {[%clk 0:01:51.5]}
15... Bc6 {[%clk 0:01:11.9]} 16. Qd3 {[%clk 0:01:50.3]} 16... Qg6 {[%clk
0:01:13.1]} 17. Nd2 {[%clk 0:01:45.7]} 17... Qxg2 {[%clk 0:01:04.8]} 18. O-O-O
{[%clk 0:01:46]} 18... Qg6 {[%clk 0:01:05.3]} 19. Bc4 {[%clk 0:01:39.4]} 19...
Nb7 {[%clk 0:00:46]} 20. a6 {[%clk 0:01:26.6]} 20... Nc5 {[%clk 0:00:42.5]} 21.
Bxc5 {[%clk 0:01:26.7]} 21... dxc5 {[%clk 0:00:44]} 22. Bd5 {[%clk 0:00:42.7]}
22... Bxd5 {[%clk 0:00:21.6]} 23. Qxd5 {[%clk 0:00:41.4]} 23... Qb6 {[%clk
0:00:04.3]} 24. Nc4 {[%clk 0:00:39.4]} 24... Qc7 {[%clk 0:00:05]} 25. Nxe5
{[%clk 0:00:21.8]} 25... f6 {[%clk 0:00:03.1]} 26. Qe6+ {[%clk 0:00:20]} 26...
Be7 {[%clk 0:00:04]} 27. Qf7# {[%clk 0:00:20.6]} 1-0

[Event "*** Titled Tuesday Blitz"]
[Site "Chess.com"]
[Date "2019.08.06"]
[Round "5"]
[White "Firouzja2003"]
[Black "Micki-taryan"]
[Result "1/2-1/2"]
[WhiteElo "3001"]
[BlackElo "2966"]
[TimeControl "180+2"]
[EndTime "14:03:53 PDT"]
[Termination "Game drawn by repetition"]

1. e4 {[%clk 0:03:01.9]} 1... e5 {[%clk 0:02:59.6]} 2. Nf3 {[%clk 0:03:02.6]}
2... Nc6 {[%clk 0:03:01.1]} 3. Bb5 {[%clk 0:03:02.3]} 3... Nf6 {[%clk
0:03:02.2]} 4. d3 {[%clk 0:03:03]} 4... d6 {[%clk 0:02:56.9]} 5. c4 {[%clk
0:02:59.6]} 5... Be7 {[%clk 0:02:52.7]} 6. h3 {[%clk 0:02:55.1]} 6... O-O {[%clk
0:02:54]} 7. Nc3 {[%clk 0:02:55.9]} 7... Nd7 {[%clk 0:02:50]} 8. O-O {[%clk
0:02:47.1]} 8... Nc5 {[%clk 0:02:51]} 9. Bxc6 {[%clk 0:02:45.4]} 9... bxc6
{[%clk 0:02:51.8]} 10. d4 {[%clk 0:02:47]} 10... exd4 {[%clk 0:02:50.8]} 11.
Nxd4 {[%clk 0:02:48.9]} 11... Bd7 {[%clk 0:02:51.6]} 12. Re1 {[%clk 0:02:46.7]}
12... Bf6 {[%clk 0:02:51.3]} 13. Bf4 {[%clk 0:02:42.7]} 13... Re8 {[%clk
0:02:52]} 14. Qd2 {[%clk 0:02:42.7]} 14... a5 {[%clk 0:02:44.2]} 15. Rad1 {[%clk
0:02:40]} 15... a4 {[%clk 0:02:43.8]} 16. Qc1 {[%clk 0:02:14.3]} 16... Qb8
{[%clk 0:02:40.5]} 17. Bg5 {[%clk 0:01:32.3]} 17... Bxd4 {[%clk 0:01:53.5]} 18.
Rxd4 {[%clk 0:01:30.9]} 18... Ne6 {[%clk 0:01:54.6]} 19. Rd3 {[%clk 0:01:25.3]}
19... Nxg5 {[%clk 0:01:48.9]} 20. Qxg5 {[%clk 0:01:27.2]} 20... Qxb2 {[%clk
0:01:46.3]} 21. Rb1 {[%clk 0:01:18.1]} 21... Qc2 {[%clk 0:01:22.3]} 22. Rg3
{[%clk 0:01:17.9]} 22... g6 {[%clk 0:01:23.8]} 23. Rc1 {[%clk 0:01:17.2]} 23...
Qb2 {[%clk 0:01:12.6]} 24. Rb1 {[%clk 0:01:18.6]} 24... Qc2 {[%clk 0:01:03.8]}
25. h4 {[%clk 0:00:54.7]} 25... Re5 {[%clk 0:00:43.3]} 26. Qh6 {[%clk
0:00:38.2]} 26... Rae8 {[%clk 0:00:31.7]} 27. Rb7 {[%clk 0:00:24.8]} 27... Rc8
{[%clk 0:00:27.3]} 28. h5 {[%clk 0:00:24.6]} 28... Be8 {[%clk 0:00:20.6]} 29.
hxg6 {[%clk 0:00:19.6]} 29... fxg6 {[%clk 0:00:22.5]} 30. Rb1 {[%clk 0:00:15.6]}
30... Re7 {[%clk 0:00:20.4]} 31. Rc1 {[%clk 0:00:14.8]} 31... Qb2 {[%clk
0:00:20.9]} 32. Rb1 {[%clk 0:00:16.2]} 32... Qc2 {[%clk 0:00:22.3]} 33. Re1
{[%clk 0:00:17.1]} 33... Qb2 {[%clk 0:00:21.6]} 34. Rb1 {[%clk 0:00:15.4]} 34...
Qc2 {[%clk 0:00:21.6]} 1/2-1/2

[Event "*** Titled Tuesday Blitz"]
[Site "Chess.com"]
[Date "2019.08.06"]
[Round "5"]
[White "SantoBlue"]
[Black "Gareth-Bale11"]
[Result "0-1"]
[WhiteElo "2798"]
[BlackElo "2751"]
[TimeControl "180+2"]
[EndTime "14:03:56 PDT"]
[Termination "Gareth-Bale11 won by checkmate"]

1. c4 {[%clk 0:03:01.9]} 1... e6 {[%clk 0:02:58.6]} 2. Nc3 {[%clk 0:02:52]} 2...
d5 {[%clk 0:02:59.2]} 3. d4 {[%clk 0:02:52.6]} 3... a6 {[%clk 0:02:46.3]} 4. e3
{[%clk 0:02:45.4]} 4... dxc4 {[%clk 0:02:44.6]} 5. Bxc4 {[%clk 0:02:46.1]} 5...
b5 {[%clk 0:02:37.6]} 6. Bd3 {[%clk 0:02:47.2]} 6... Bb7 {[%clk 0:02:30.2]} 7.
Nf3 {[%clk 0:02:46.2]} 7... Nf6 {[%clk 0:02:24.4]} 8. Qc2 {[%clk 0:02:42.1]}
8... Nbd7 {[%clk 0:02:18.7]} 9. a3 {[%clk 0:02:35.7]} 9... c5 {[%clk 0:02:18.7]}
10. O-O {[%clk 0:02:25.9]} 10... Be7 {[%clk 0:02:19.3]} 11. Rd1 {[%clk
0:02:14.4]} 11... Qb6 {[%clk 0:02:14.1]} 12. Be2 {[%clk 0:02:12.1]} 12... Rc8
{[%clk 0:02:09.5]} 13. Qb1 {[%clk 0:02:02.7]} 13... cxd4 {[%clk 0:01:57.7]} 14.
exd4 {[%clk 0:01:59.9]} 14... h6 {[%clk 0:01:50.2]} 15. Ne5 {[%clk 0:01:57.5]}
15... O-O {[%clk 0:01:48.3]} 16. Nxd7 {[%clk 0:01:54.5]} 16... Nxd7 {[%clk
0:01:48.9]} 17. d5 {[%clk 0:01:52.8]} 17... Bc5 {[%clk 0:01:41]} 18. Rf1 {[%clk
0:01:43.3]} 18... exd5 {[%clk 0:01:38.9]} 19. Bg4 {[%clk 0:01:44.7]} 19... Rcd8
{[%clk 0:01:37.2]} 20. b4 {[%clk 0:01:43.3]} 20... Bd4 {[%clk 0:01:33.5]} 21.
Bb2 {[%clk 0:01:44.7]} 21... Ne5 {[%clk 0:01:27.6]} 22. Bd1 {[%clk 0:01:27.4]}
22... Nc4 {[%clk 0:01:26.2]} 23. Bb3 {[%clk 0:00:43.2]} 23... Nxb2 {[%clk
0:01:10]} 24. Qxb2 {[%clk 0:00:45.1]} 24... Rc8 {[%clk 0:01:10.6]} 25. Rac1
{[%clk 0:00:46.1]} 25... Qf6 {[%clk 0:01:11.2]} 26. Qe2 {[%clk 0:00:37.8]} 26...
Bxc3 {[%clk 0:01:10.6]} 27. Qd3 {[%clk 0:00:38.4]} 27... g6 {[%clk 0:01:04.9]}
28. Qh3 {[%clk 0:00:37.3]} 28... Kg7 {[%clk 0:01:04.5]} 29. Qd7 {[%clk 0:00:38]}
29... Bc6 {[%clk 0:01:01.2]} 30. Qh3 {[%clk 0:00:31.2]} 30... d4 {[%clk
0:00:58.9]} 31. f4 {[%clk 0:00:32.6]} 31... Be4 {[%clk 0:00:57.5]} 32. f5 {[%clk
0:00:32.8]} 32... g5 {[%clk 0:00:53.2]} 33. Qg4 {[%clk 0:00:32.6]} 33... Rfe8
{[%clk 0:00:53.7]} 34. h4 {[%clk 0:00:33.5]} 34... d3 {[%clk 0:00:54.1]} 35. Qh5
{[%clk 0:00:29.3]} 35... Bd4+ {[%clk 0:00:51.1]} 36. Kh1 {[%clk 0:00:29.1]}
36... Rxc1 {[%clk 0:00:51.9]} 37. Rxc1 {[%clk 0:00:31]} 37... Qxf5 {[%clk
0:00:52.6]} 38. Rd1 {[%clk 0:00:12.8]} 38... Qh3# {[%clk 0:00:51.7]} 0-1